Workbook

Sheet Instrucciones de uso
B1: Instrucciones para el tamizador de alimento
B2: 1- Quitar la tapa del tamizador e insertar la tapa vertical en la ranura en medio del compartimiento de >3mm. 2- Tomar muestras del alimento correctamente, y llenar el compartimiento izquierdo con alimento.
B3: 3- Quitar la tapa y cerrar el tamizador colocando nuevamente la tapa en la ranura. 4- Posicionar el tamizador HUBBARD de manera vertical (el compartimiento > 3mm en la parte superior) y agitar por 60 segundos alternando de derecha a izquierda y arriba y abajo.
B4: 5- Leer los resultados y anotar la cantidad de alimento en cada compartimiento usando la balanza graduada que se encuentra a la izquierda de cada compartimiento. 6- Ingresar los resultados en la pestaña de datos “Ingresar los datos” de este archivo Excel. 7- Quitar la tapa y vaciar el alimento del tamizador. Limpiar las zarandas con brocha. 8- Para tener un buen análisis de la muestra del alimento, repetir el proceso con el mismo alimento hasta 5 veces.
B12: www.hubbardbreeders.com

Sheet Ingresar los datos
E1: Registro Para Calidad Física del Alimento
E4: Compañía | F4: Hubbard | I4: ¿Cómo utilizar este documento?
E5: Fecha | F5: 2025-01-01 | I5: 1-Ingresar los valores en las celdas verdes: Es importante llenar en el tipo de alimento y presentación del alimento para tener una comparación correcta con las recomendaciones de Hubbard. 2-Interpretación / Leyenda: Los resultados acordes con las recomendaciones de Hubbard. Los resultados NO acordes con las recomendaciones de Hubbard.
E6: Producto | F6: PS Hembra EFFICIENCY PLUS
E7: Nombre de granja | F7: Cocorico
E8: N° de caseta | F8: 1
E9: Fábrica de alimento | F9: Feed Plus
E10: Tipo de alimento | F10: Reproductora III
E11: Presentación de alimento | F11: Harina
F13: Ingresar los valores leídos en el tamizador de alimento | L13: % de la muestra
F14: >3mm | G14: 2-3mm | H14: 1-2mm | I14: <1mm | J14: Total | L14: >3mm | M14: 2-3mm | N14: 1-2mm | O14: <1mm | P14: Total
E15: Sub Muestra 1 | F15: 10 | G15: 45 | H15: 35 | I15: 10 | J15: =IF(OR(F15="",G15="",H15="",I15=""),"",SUM(F15:I15)) -> 100 | L15: =IF(J15="","",F15/$J15) -> 0.1 | M15: =IF(J15="","",G15/$J15) -> 0.45 | N15: =IF(J15="","",H15/$J15) -> 0.35 | O15: =IF(J15="","",I15/$J15) -> 0.1 | P15: =IF(J15="","",J15/$J15) -> 1
E16: Sub Muestra 2 | F16: 12.5 | G16: 42.5 | H16: 32.5 | I16: 15 | J16: =IF(OR(F16="",G16="",H16="",I16=""),"",SUM(F16:I16)) -> 102.5 | L16: =IF(J16="","",F16/$J16) -> 0.1219512195 | M16: =IF(J16="","",G16/$J16) -> 0.4146341463 | N16: =IF(J16="","",H16/$J16) -> 0.3170731707 | O16: =IF(J16="","",I16/$J16) -> 0.1463414634 | P16: =IF(J16="","",J16/$J16) -> 1
E17: Sub Muestra 3 | F17: 15 | G17: 40 | H17: 30 | I17: 15 | J17: 100 | L17: =IF(J17="","",F17/$J17) -> 0.15 | M17: 0.4 | N17: 0.3 | O17: 0.15 | P17: 1
E18: Sub Muestra 4 | F18: 17.5 | G18: 37.5 | H18: 27.5 | I18: 12.5 | J18: 95 | L18: =IF(J18="","",F18/$J18) -> 0.1842105263 | M18: =IF(J18="","",G18/$J18) -> 0.3947368421 | N18: 0.2894736842 | O18: 0.1315789474 | P18: 1
E19: Sub Muestra 5 | F19: 20 | G19: 35 | H19: 25 | I19: 15 | J19: =IF(OR(F19="",G19="",H19="",I19=""),"",SUM(F19:I19)) -> 95 | L19: =IF(J19="","",F19/$J19) -> 0.2105263158 | M19: =IF(J19="","",G19/$J19) -> 0.3684210526 | N19: 0.2631578947 | O19: 0.1578947368 | P19: 1
E20: Promedio | F20: =IF($F$15>0.001,AVERAGE(F15:F19),"") -> 15 | G20: =IF($F$15>0.001,AVERAGE(G15:G19),"") -> 40 | H20: =IF($F$15>0.001,AVERAGE(H15:H19),"") -> 30 | I20: =IF($F$15>0.001,AVERAGE(I15:I19),"") -> 13.5 | J20: =IF($F$15>0.001,AVERAGE(J15:J19),"") -> 98.5 | L20: =IF($F$15>0.001,AVERAGE(L15:L19),"") -> 0.1533376123 | M20: =IF($F$15>0.001,AVERAGE(M15:M19),"") -> 0.4055584082 | N20: =IF($F$15>0.001,AVERAGE(N15:N19),"") -> 0.3039409499 | O20: =IF($F$15>0.001,AVERAGE(O15:O19),"") -> 0.1371630295 | P20: =IF($F$15>0.001,AVERAGE(P15:P19),"") -> 1
E21: Recomendación Hubbard | F21: =IF(L21="","",L21*100) -> 15 | G21: =IF(M21="","",M21*100) -> 40 | H21: =IF(N21="","",N21*100) -> 30 | I21: =IF(O21="","",O21*100) -> 15 | J21: =IF(P21="","",P21*100) -> 100 | L21: =IF(VLOOKUP($F$11&$F$10&$L$14,Recomendaciones!A2:E97,5)="N/A","",VLOOKUP($F$11&$F$10&$L$14,Recomendaciones!A2:E97,5)) -> 0.15 | M21: =IF(VLOOKUP($F$11&$F$10&$M$14,Recomendaciones!$A$2:$E$97,5)="N/A","",VLOOKUP($F$11&$F$10&$M$14,Recomendaciones!$A$2:$E$97,5)) -> 0.4 | N21: =IF(VLOOKUP($F$11&$F$10&$N$14,Recomendaciones!$A$2:$E$97,5)="N/A","",VLOOKUP($F$11&$F$10&$N$14,Recomendaciones!$A$2:$E$97,5)) -> 0.3 | O21: =IF(VLOOKUP($F$11&$F$10&$O$14,Recomendaciones!$A$2:$E$97,5)="N/A","",VLOOKUP($F$11&$F$10&$O$14,Recomendaciones!$A$2:$E$97,5)) -> 0.15 | P21: =IF(SUM(L21:O21)=0,"",SUM(L21:O21)) -> 1
E43: Por favor, se recomienda usar la experiencia local y consultar con su Gerente Técnico de Hubbard para obtener más asistencia.
E44: www.hubbardbreeders.com
E46: Los datos de desempeño en este documento fueron obtenidos como resultado y experiencia de nuestra propia investigación o de nuestros clientes. De ninguna manera los datos de este documento constituyen una garantía del mismo desempeño bajo distintas condiciones de nutrición, densidad o ambiente físico o biológico. En particular (pero sin limitación de lo anterior) no otorgamos ninguna garantía con respecto a la idoneidad para el propósito, desempeño, uso, naturaleza o calidad de los lotes, ni ninguna garantía con respecto al cumplimiento de la legislación local acerca de salud, bienestar, u otros aspectos de la producción animal. Hubbard no garantiza la exactitud o integridad de la información en este documento. V 2025-01

Sheet Recomendaciones (hidden)
A1: ID | B1: Form | C1: Particle size | D1: Feed type | E1: Recommandation | F1: Quality of feed presentation
A2: =B2&D2&C2 -> HarinaCrecimiento<1mm | B2: Harina | C2: <1mm | D2: Crecimiento | E2: 0.2 | F2: Good | H2: Miga | I2: Pre-Incial | J2: PS Hembra EFFICIENCY PLUS
A3: HarinaCrecimiento>3mm | B3: Harina | C3: >3mm | D3: Crecimiento | E3: 0.1 | F3: Good | H3: Harina | I3: Inicial | J3: PS Hembra Premium (JA57; JA57Ki; JA87; REDBRO; Redbro Mini; P6N)
A4: HarinaCrecimiento1-2mm | B4: Harina | C4: 1-2mm | D4: Crecimiento | E4: 0.35 | F4: Good | H4: Pellets | I4: Crecimiento | J4: PS Machos (M77/M99)
A5: HarinaCrecimiento2-3mm | B5: Harina | C5: 2-3mm | D5: Crecimiento | E5: 0.35 | F5: Good | I5: Transición | J5: PS Machos (Machos de crecimiento intermedio, machos de lento crecimiento)
A6: HarinaInicial<1mm | B6: Harina | C6: <1mm | D6: Inicial | E6: 0.2 | F6: Good | I6: Inicio de puesta
A7: HarinaInicial>3mm | B7: Harina | C7: >3mm | D7: Inicial | E7: 0.05 | F7: Good | I7: Reproductora I
A8: HarinaInicial1-2mm | B8: Harina | C8: 1-2mm | D8: Inicial | E8: 0.5 | F8: Good | I8: Reproductora II
A9: HarinaInicial2-3mm | B9: Harina | C9: 2-3mm | D9: Inicial | E9: 0.25 | F9: Good | I9: Reproductora III
A10: HarinaInicio de puesta<1mm | B10: Harina | C10: <1mm | D10: Inicio de puesta | E10: 0.15 | F10: Good
A11: HarinaInicio de puesta>3mm | B11: Harina | C11: >3mm | D11: Inicio de puesta | E11: 0.15 | F11: Good
A12: HarinaInicio de puesta1-2mm | B12: Harina | C12: 1-2mm | D12: Inicio de puesta | E12: 0.3 | F12: Good
A13: HarinaInicio de puesta2-3mm | B13: Harina | C13: 2-3mm | D13: Inicio de puesta | E13: 0.4 | F13: Good
A14: HarinaPre-Incial<1mm | B14: Harina | C14: <1mm | D14: Pre-Incial | E14: 0.2 | F14: Good
A15: HarinaPre-Incial>3mm | B15: Harina | C15: >3mm | D15: Pre-Incial | E15: 0.05 | F15: Good
A16: HarinaPre-Incial1-2mm | B16: Harina | C16: 1-2mm | D16: Pre-Incial | E16: 0.5 | F16: Good
A17: HarinaPre-Incial2-3mm | B17: Harina | C17: 2-3mm | D17: Pre-Incial | E17: 0.25 | F17: Good
A18: HarinaReproductora I<1mm | B18: Harina | C18: <1mm | D18: Reproductora I | E18: 0.15 | F18: Good
A19: HarinaReproductora I>3mm | B19: Harina | C19: >3mm | D19: Reproductora I | E19: 0.15 | F19: Good
A20: HarinaReproductora I1-2mm | B20: Harina | C20: 1-2mm | D20: Reproductora I | E20: 0.3 | F20: Good
A21: HarinaReproductora I2-3mm | B21: Harina | C21: 2-3mm | D21: Reproductora I | E21: 0.4 | F21: Good
A22: HarinaReproductora II<1mm | B22: Harina | C22: <1mm | D22: Reproductora II | E22: 0.15 | F22: Good
A23: HarinaReproductora II>3mm | B23: Harina | C23: >3mm | D23: Reproductora II | E23: 0.15 | F23: Good
A24: HarinaReproductora II1-2mm | B24: Harina | C24: 1-2mm | D24: Reproductora II | E24: 0.3 | F24: Good
A25: HarinaReproductora II2-3mm | B25: Harina | C25: 2-3mm | D25: Reproductora II | E25: 0.4 | F25: Good
A26: HarinaReproductora III<1mm | B26: Harina | C26: <1mm | D26: Reproductora III | E26: 0.15 | F26: Good
A27: HarinaReproductora III>3mm | B27: Harina | C27: >3mm | D27: Reproductora III | E27: 0.15 | F27: Good
A28: HarinaReproductora III1-2mm | B28: Harina | C28: 1-2mm | D28: Reproductora III | E28: 0.3 | F28: Good
A29: HarinaReproductora III2-3mm | B29: Harina | C29: 2-3mm | D29: Reproductora III | E29: 0.4 | F29: Good
A30: HarinaTransición<1mm | B30: Harina | C30: <1mm | D30: Transición | E30: 0.2 | F30: Good
A31: HarinaTransición>3mm | B31: Harina | C31: >3mm | D31: Transición | E31: 0.1 | F31: Good
A32: HarinaTransición1-2mm | B32: Harina | C32: 1-2mm | D32: Transición | E32: 0.35 | F32: Good
A33: HarinaTransición2-3mm | B33: Harina | C33: 2-3mm | D33: Transición | E33: 0.35 | F33: Good
A34: MigaCrecimiento<1mm | B34: Miga | C34: <1mm | D34: Crecimiento | E34: 0.1 | F34: Good
A35: MigaCrecimiento>3mm | B35: Miga | C35: >3mm | D35: Crecimiento | E35: 0.5 | F35: Good
A36: MigaCrecimiento1-2mm | B36: Miga | C36: 1-2mm | D36: Crecimiento | E36: 0.1 | F36: Good
A37: MigaCrecimiento2-3mm | B37: Miga | C37: 2-3mm | D37: Crecimiento | E37: 0.3 | F37: Good
A38: MigaInicial<1mm | B38: Miga | C38: <1mm | D38: Inicial | E38: 0.05 | F38: Good
A39: MigaInicial>3mm | B39: Miga | C39: >3mm | D39: Inicial | E39: 0 | F39: Good
A40: MigaInicial1-2mm | B40: Miga | C40: 1-2mm | D40: Inicial | E40: 0.55 | F40: Good
A41: MigaInicial2-3mm | B41: Miga | C41: 2-3mm | D41: Inicial | E41: 0.4 | F41: Good
A42: MigaInicio de puesta<1mm | B42: Miga | C42: <1mm | D42: Inicio de puesta | E42: 0.1 | F42: Good
A43: MigaInicio de puesta>3mm | B43: Miga | C43: >3mm | D43: Inicio de puesta | E43: 0.5 | F43: Good
A44: MigaInicio de puesta1-2mm | B44: Miga | C44: 1-2mm | D44: Inicio de puesta | E44: 0.1 | F44: Good
A45: MigaInicio de puesta2-3mm | B45: Miga | C45: 2-3mm | D45: Inicio de puesta | E45: 0.3 | F45: Good
A46: MigaPre-Incial<1mm | B46: Miga | C46: <1mm | D46: Pre-Incial | E46: 0.05 | F46: Good
A47: MigaPre-Incial>3mm | B47: Miga | C47: >3mm | D47: Pre-Incial | E47: 0 | F47: Good
A48: MigaPre-Incial1-2mm | B48: Miga | C48: 1-2mm | D48: Pre-Incial | E48: 0.55 | F48: Good
A49: MigaPre-Incial2-3mm | B49: Miga | C49: 2-3mm | D49: Pre-Incial | E49: 0.4 | F49: Good
A50: MigaReproductora I<1mm | B50: Miga | C50: <1mm | D50: Reproductora I | E50: 0.1 | F50: Good
A51: MigaReproductora I>3mm | B51: Miga | C51: >3mm | D51: Reproductora I | E51: 0.5 | F51: Good
A52: MigaReproductora I1-2mm | B52: Miga | C52: 1-2mm | D52: Reproductora I | E52: 0.1 | F52: Good
A53: MigaReproductora I2-3mm | B53: Miga | C53: 2-3mm | D53: Reproductora I | E53: 0.3 | F53: Good
A54: MigaReproductora II<1mm | B54: Miga | C54: <1mm | D54: Reproductora II | E54: 0.1 | F54: Good
A55: MigaReproductora II>3mm | B55: Miga | C55: >3mm | D55: Reproductora II | E55: 0.5 | F55: Good
A56: MigaReproductora II1-2mm | B56: Miga | C56: 1-2mm | D56: Reproductora II | E56: 0.1 | F56: Good
A57: MigaReproductora II2-3mm | B57: Miga | C57: 2-3mm | D57: Reproductora II | E57: 0.3 | F57: Good
A58: MigaReproductora III<1mm | B58: Miga | C58: <1mm | D58: Reproductora III | E58: 0.1 | F58: Good
A59: MigaReproductora III>3mm | B59: Miga | C59: >3mm | D59: Reproductora III | E59: 0.5 | F59: Good
A60: MigaReproductora III1-2mm | B60: Miga | C60: 1-2mm | D60: Reproductora III | E60: 0.1 | F60: Good
A61: MigaReproductora III2-3mm | B61: Miga | C61: 2-3mm | D61: Reproductora III | E61: 0.3 | F61: Good
A62: MigaTransición<1mm | B62: Miga | C62: <1mm | D62: Transición | E62: 0.1 | F62: Good
A63: MigaTransición>3mm | B63: Miga | C63: >3mm | D63: Transición | E63: 0.5 | F63: Good
A64: MigaTransición1-2mm | B64: Miga | C64: 1-2mm | D64: Transición | E64: 0.1 | F64: Good
A65: MigaTransición2-3mm | B65: Miga | C65: 2-3mm | D65: Transición | E65: 0.3 | F65: Good
A66: =B66&D66&C66 -> PelletsCrecimiento<1mm | B66: Pellets | C66: <1mm | D66: Crecimiento | E66: 0.1 | F66: Good
A67: PelletsCrecimiento>3mm | B67: Pellets | C67: >3mm | D67: Crecimiento | E67: 0.7 | F67: Good
A68: PelletsCrecimiento1-2mm | B68: Pellets | C68: 1-2mm | D68: Crecimiento | E68: 0.1 | F68: Good
A69: PelletsCrecimiento2-3mm | B69: Pellets | C69: 2-3mm | D69: Crecimiento | E69: 0.1 | F69: Good
A70: PelletsInicial<1mm | B70: Pellets | C70: <1mm | D70: Inicial | E70: N/A | F70: Good
A71: PelletsInicial>3mm | B71: Pellets | C71: >3mm | D71: Inicial | E71: N/A | F71: Good
A72: PelletsInicial1-2mm | B72: Pellets | C72: 1-2mm | D72: Inicial | E72: N/A | F72: Good
A73: PelletsInicial2-3mm | B73: Pellets | C73: 2-3mm | D73: Inicial | E73: N/A | F73: Good
A74: PelletsInicio de puesta<1mm | B74: Pellets | C74: <1mm | D74: Inicio de puesta | E74: 0.1 | F74: Good
A75: PelletsInicio de puesta>3mm | B75: Pellets | C75: >3mm | D75: Inicio de puesta | E75: 0.7 | F75: Good
A76: PelletsInicio de puesta1-2mm | B76: Pellets | C76: 1-2mm | D76: Inicio de puesta | E76: 0.1 | F76: Good
A77: PelletsInicio de puesta2-3mm | B77: Pellets | C77: 2-3mm | D77: Inicio de puesta | E77: 0.1 | F77: Good
A78: PelletsPre-Incial<1mm | B78: Pellets | C78: <1mm | D78: Pre-Incial | E78: N/A | F78: Good
A79: PelletsPre-Incial>3mm | B79: Pellets | C79: >3mm | D79: Pre-Incial | E79: N/A | F79: Good
A80: PelletsPre-Incial1-2mm | B80: Pellets | C80: 1-2mm | D80: Pre-Incial | E80: N/A | F80: Good
A81: PelletsPre-Incial2-3mm | B81: Pellets | C81: 2-3mm | D81: Pre-Incial | E81: N/A | F81: Good
A82: PelletsReproductora I<1mm | B82: Pellets | C82: <1mm | D82: Reproductora I | E82: 0.1 | F82: Good
A83: PelletsReproductora I>3mm | B83: Pellets | C83: >3mm | D83: Reproductora I | E83: 0.7 | F83: Good
A84: PelletsReproductora I1-2mm | B84: Pellets | C84: 1-2mm | D84: Reproductora I | E84: 0.1 | F84: Good
A85: PelletsReproductora I2-3mm | B85: Pellets | C85: 2-3mm | D85: Reproductora I | E85: 0.1 | F85: Good
A86: PelletsReproductora II<1mm | B86: Pellets | C86: <1mm | D86: Reproductora II | E86: 0.1 | F86: Good
A87: PelletsReproductora II>3mm | B87: Pellets | C87: >3mm | D87: Reproductora II | E87: 0.7 | F87: Good
A88: PelletsReproductora II1-2mm | B88: Pellets | C88: 1-2mm | D88: Reproductora II | E88: 0.1 | F88: Good
A89: PelletsReproductora II2-3mm | B89: Pellets | C89: 2-3mm | D89: Reproductora II | E89: 0.1 | F89: Good
A90: PelletsReproductora III<1mm | B90: Pellets | C90: <1mm | D90: Reproductora III | E90: 0.1 | F90: Good
A91: PelletsReproductora III>3mm | B91: Pellets | C91: >3mm | D91: Reproductora III | E91: 0.7 | F91: Good
A92: PelletsReproductora III1-2mm | B92: Pellets | C92: 1-2mm | D92: Reproductora III | E92: 0.1 | F92: Good
A93: PelletsReproductora III2-3mm | B93: Pellets | C93: 2-3mm | D93: Reproductora III | E93: 0.1 | F93: Good
A94: PelletsTransición<1mm | B94: Pellets | C94: <1mm | D94: Transición | E94: 0.1 | F94: Good
A95: PelletsTransición>3mm | B95: Pellets | C95: >3mm | D95: Transición | E95: 0.7 | F95: Good
A96: PelletsTransición1-2mm | B96: Pellets | C96: 1-2mm | D96: Transición | E96: 0.1 | F96: Good
A97: PelletsTransición2-3mm | B97: Pellets | C97: 2-3mm | D97: Transición | E97: 0.1 | F97: Good
